Workbook

Sheet Loan Analysis Worksheet
B2: LOAN ANALYSIS WORKSHEET
C4: Primary Guarantor: | D4: Summer Reed | F4: Primary's Credit Score: | G4: 720
C5: Second Guarantor: | F5: Second's Credit Score: | G5: 640
C6: Broker Name: | J6: Does the loan amount exceed the FHA Cap? | K6: No
C7: Property Address: | I7: FHA Cap
C8: Property Address: | I8: Loan Amount Override
E10: Loan Type: | F10: Purchase & Rehab | H10: Cross Collateral
E11: Units: | F11: 1 | G11: Units: | H11: 1
E12: Properties on Loan: | F12: 1 | G12: Additional Properties: | H12: 1
E13: Purchase Price: | F13: 580000 | G13: Amount Owed:
E14: Amount Owed: | G14: As-Is Value: | M14: Loan Amount Calculations
E15: Rehab Bid: | F15: 60000 | G15: =IF('Rate Sheet'!F26="No",0,('Loan Analysis Worksheet'!F15*0.1)) -> 0 | M15: Max Qualifying Loan | N15: ='Formulas for Loan Amount'!I12 -> 455000
E16: 10% Rehab Contingency: | F16: =IF(AND('Loan Analysis Worksheet'!F19>679.99,'Loan Analysis Worksheet'!F20>2.99),0,'Loan Analysis Worksheet'!G15) -> 0 | M16: Loan Override | N16: =IF(J8>0,J8,N15) -> 455000
E17: As-Is Value: | F17: 0 | M17: FHA Cap | N17: =IF(AND(N16>J7,K6="Yes"),J7,N16) -> 455000
E18: After Repair Value (ARV): | F18: 700000 | M18: Minimum Loan | N18: =IF(N17<30000,0,N17) -> 455000
E19: Qualifying Credit Score: | F19: =IF(G5>0,((G4+G5)/2),G4) -> 680 | M19: Max Loan | N19: =IF(N18>N15,N15,N18) -> 455000
E20: Experience in the last 24 Months | F20: 16
E21: Seller Second/Earnest Deposit: | F21: 448000 | I21: =MIN(J21,N19) -> 192000 | J21: =IF(AND(F21>0,P24<0),(N19+P24),N19) -> 192000 | M21: =IF(F32<0,(N19+F32),N19) -> 455000
E22: Broker Fee: | F22: 0.045
E23: =IF(F22>3%,3%,F22) -> 0.03 | F23: =IF('Rate Sheet'!G50="Yes",('Loan Analysis Worksheet'!I28+1%)/2,E23) -> 0.03 | M23: Total Cost | N23: =IF(F13>0,(F13+F15+F16+H13),(F14+F15+F16+H13)) -> 640000 | P23: original
C24: Summary Estimate | H24: The Loan Amount Should Be | J24: =IF(F10="Cash-Out",N19,I21) -> 192000 | M24: Total Credits | N24: =SUM(F21+F26) -> 640000 | O24: =SUM(N19+F21) -> 903000 | P24: =SUM(N23-O24) -> -263000
E26: Loan Amount: | F26: 192000
E27: Loan To Value (LTV): | F27: =IF(F18>0,F26/F18,F26/F17) -> 0.2742857143 | I27: =IF('Rate Sheet'!C27="Yes",'Loan Analysis Worksheet'!L27,J27) -> 0.1099 | J27: =IF('Rate Sheet'!B20<8.99%,8.99%,'Rate Sheet'!B20) -> 0.1099 | K27: Platinum Club | L27: 0.0975
E28: Interest Rate: | F28: =IF('Rate Sheet'!G31="Yes",'Loan Analysis Worksheet'!J27,'Loan Analysis Worksheet'!I27) -> 0.1099 | G28: =IF('Rate Sheet'!G50="Yes",('Loan Analysis Worksheet'!I28+1%)/2,I28) -> 0.025 | I28: =IF('Rate Sheet'!C27="Yes",L28,J28) -> 0.025 | J28: =IF('Rate Sheet'!C20<1,1%,('Rate Sheet'!C20/100)) -> 0.025 | L28: =MAX((M28:N28)/100) -> 0.02 | M28: =IF(F15>0,2,1) -> 2 | N28: =IF(F10="Cash-Out",2,1) -> 1
E29: Origination Points: | F29: =IF('Rate Sheet'!G31="Yes",'Loan Analysis Worksheet'!J28,'Loan Analysis Worksheet'!G28) -> 0.025
E30: Term In Months: | F30: ='Rate Sheet'!F35 -> 12
E31: Monthly Payment: | F31: =SUM(F26*F28)/12 -> 1758.4
E32: =IF(F32<0,"Gross Cash-Out to Borrower:","Required Down Payment of Purchase Price or Amount Owed:") -> Required Down Payment of Purchase Price or Amount Owed: | F32: =SUM(N23-N24) -> 0
E33: Origination Fee Cost: | F33: =F29*F26 -> 4800
E34: Broker Fee: | F34: =SUM(F26*F23) -> 5760
E35: Closing Cost: | F35: To be Determined
E37: Estimated total cost: | F37: =SUM(F13+F14+F15+F16+(F29*F26)+15000) -> 659800 | G37: (includes $15K for closing costs)
E38: *Estimated Gross Profit: | F38: =IF(F15>0,(F18-F37),(F17-F37)) -> 40200 | G38: =SUM(F38/F37) -> 0.0609275538
D39: *Does not include holding or resale cost
E41: Loan to Cost: | F41: =SUM(F26/(F13+F15+F16)) -> 0.3

Sheet Formulas for Loan Amount (hidden)
A3: Purchase Loan Amount
A4: Non-Student | F4: Master Loan amounts | O4: Cross Colateral
A5: Purchase Covered | D5: =SUM('Loan Analysis Worksheet'!F13*0.9) -> 522000 | F5: Purchase | I5: =IF('Loan Analysis Worksheet'!F10="Purchase",D39,0) -> 0 | O5: Amount Owed: | P5: ='Loan Analysis Worksheet'!H13 -> 0
A6: Rehab Covered | D6: =SUM('Loan Analysis Worksheet'!F15:F16) -> 60000 | F6: Purchase and Rehab | I6: =IF('Loan Analysis Worksheet'!F10="Purchase & Rehab",D39,0) -> 455000 | O6: Value | P6: ='Loan Analysis Worksheet'!H14 -> 0
A7: Purchase | D7: =IF('Loan Analysis Worksheet'!F10="Purchase",D5,0) -> 0 | F7: Refi | I7: =IF('Loan Analysis Worksheet'!F10="Refi",D79,0) -> 0 | O7: 50% LTV | P7: =SUM(P6*0.5) -> 0
A8: Purchase & Rehab | D8: =IF('Loan Analysis Worksheet'!F10="Purchase & Rehab",(D5+D6),0) -> 582000 | F8: Refi and Rehab | I8: =IF('Loan Analysis Worksheet'!F10="Refi and Rehab",D79,0) -> 0 | O8: =IF('Rate Sheet'!F26="Yes","70% LTV","65% LTV") -> 65% LTV | P8: =IF('Rate Sheet'!F26="Yes",(P6*0.7),(P6*0.65)) -> 0
A9: max loan | D9: =MAX(D7:D8) -> 582000 | F9: Cash-out | I9: =IF('Loan Analysis Worksheet'!F10="Cash-Out",D95,0) -> 0 | O9: If loan is over 50% cash-out $2k | P9: =IF(AND(P5>P7,(P8-P5)>2000),(P7+2000),P7) -> 0
A10: Max Value | D10: =IF('Loan Analysis Worksheet'!F18>0,'Loan Analysis Worksheet'!F18,'Loan Analysis Worksheet'!F17) -> 700000 | O10: Amount Owed or 50% + $2k | P10: =IF(P5>P9,(P5+2000),P9) -> 0
A11: 65% LTV Cap | D11: =IF(D9>(65%*D10),(D10*65%),D9) -> 455000 | I11: =MAX(I5:J10) -> 455000 | O11: % Cap | P11: =IF(P10>P8,P8,P10) -> 0
A12: 50% LTV Cap | D12: =IF(D9>(50%*D10),(D10*50%),D9) -> 350000 | F12: Max Loan | I12: =SUM(I11+P11) -> 455000
A13: Exception County or not | D13: =IF('Rate Sheet'!F38="Yes",'Formulas for Loan Amount'!D12,'Formulas for Loan Amount'!D11) -> 455000
A14: Minimum LA $30k | D14: =IF(D13<30000,0,D13) -> 455000
A15: 50% LTV | D15: =IF(D14<(D10*0.5),D14,(D10*0.5)) -> 350000
A16: 50% LTV value 60k > | D16: =IF(D10<60001,D15,D14) -> 455000
A17: 90% LTC | D17: =SUM(('Loan Analysis Worksheet'!F13+'Loan Analysis Worksheet'!F15+'Loan Analysis Worksheet'!F16)*0.9) -> 576000
A18: 90% LTC Cap | D18: =IF((D16/('Loan Analysis Worksheet'!F13+'Loan Analysis Worksheet'!F15+'Loan Analysis Worksheet'!F16))>0.9,'Formulas for Loan Amount'!D17,'Formulas for Loan Amount'!D16) -> 455000
A19: Max Pur Non Student LA | D19: =IF('Rate Sheet'!F26="No",D18,0) -> 455000
A20: Student
A21: 70% LTV Cap | D21: =IF('Rate Sheet'!F26="Yes",(D10*0.7),0) -> 0
A22: No Cash Out | D22: =MIN(D21,'Loan Analysis Worksheet'!N23) -> 0
A23: 50% LTV Cap | D23: =IF(D22>(50%*D10),(D10*50%),D22) -> 0
A24: Exception County or not | D24: =IF('Rate Sheet'!F38="Yes",D23,D22) -> 0
A25: Minimum LA $30k | D25: =IF(D24<30000,0,D24) -> 0
A26: 50% LTV | D26: =IF(D25<(D10*0.5),D25,(D10*0.5)) -> 0
A27: 50% LTV value 60k > | D27: =IF(D10<60001,D26,D25) -> 0 | F27: Things I need to Fix
A28: Max Pur Student Loan | D28: =IF('Rate Sheet'!F26="Yes",D27,0) -> 0 | F28: 1
A29: Platinum Purchase | E29: =IF('Loan Analysis Worksheet'!F32<0,D30,'Loan Analysis Worksheet'!N23) -> 640000 | F29: 2 | G29: on LA worksheet put conditional cell that says we are going through civic or not
A30: Eval Loan | D30: =SUM(D10*0.7) -> 490000 | F30: 3 | G30: Add multiple property to 30 year calcu
A31: Eval No Cash-Out | D31: =MIN(D30,'Loan Analysis Worksheet'!N23) -> 490000 | F31: 4 | G31: Make rates detriminedoff the Yes or No tab for civic.
A32: Max Eval Loan | D32: =IF(D31>(D10*0.7),D30,D31) -> 490000 | E32: =IF('Loan Analysis Worksheet'!F32<0,D33,'Loan Analysis Worksheet'!N23) -> 640000 | F32: 5
A33: Appraisal Loan | D33: =IF('Rate Sheet'!B52="Appraisal",(D10*0.75),0) -> 525000 | F33: 6
A34: Appraisal No Cash-Out | D34: =MIN(D33,'Loan Analysis Worksheet'!N23) -> 525000
A35: Max Appraisal Loan | D35: =IF(D34>(D10*0.7),D33,D34) -> 525000
A36: Appraisal or Eval | D36: =IF('Rate Sheet'!B52="Appraisal",D35,D32) -> 525000
A37: Minimum LA $30k | D37: =IF(D36<30000,0,D36) -> 525000
A38: Max Platinum LA | D38: =IF('Rate Sheet'!C27="Yes",D37,0) -> 0
A39: Max Pur Loan Amount | D39: =MAX(D38,D28,D19) -> 455000
A40: Refi Loan Amount
A41: Non-Student
A42: Amount Owed Covered | D42: =SUM('Loan Analysis Worksheet'!F14*0.9) -> 0
A43: Rehab Covered | D43: =SUM('Loan Analysis Worksheet'!F15:F16) -> 60000
A44: Refi | D44: =IF('Loan Analysis Worksheet'!F10="Refi",D42,0) -> 0
A45: Refi & Rehab | D45: =IF('Loan Analysis Worksheet'!F10="Refi and Rehab",(D42+D43),0) -> 0
H46: Password
A47: max loan | D47: =MAX(D44:D45) -> 0 | H47: (2021!)
A48: Invested 10% = total cost | D48: =IF('Rate Sheet'!G42="Yes",'Loan Analysis Worksheet'!N23,D47) -> 0
A50: Max Value | D50: =IF('Loan Analysis Worksheet'!F18>0,'Loan Analysis Worksheet'!F18,'Loan Analysis Worksheet'!F17) -> 700000
A51: 65% LTV Cap | D51: =IF(D48>(65%*D50),(D50*65%),D48) -> 0
A52: 50% LTV Cap | D52: =IF(D48>(50%*D50),(D50*50%),D48) -> 0 | L52: Christopher Mason | Loan Analyst | Ext 1268
A53: Exception County or not | D53: =IF('Rate Sheet'!F38="Yes",D52,D51) -> 0 | L53: P 208.758.8129 (Call or Text) | E cmason@cogocapital.com
A54: Minimum LA $30k | D54: =IF(D53<30000,0,D53) -> 0 | L54: 701 E. Front Ave., Second Floor | Coeur D’Alene, ID 83814 | cogocapital.com
A55: 50% LTV | D55: =IF(D54<(D50*0.5),D54,(D50*0.5)) -> 0
A56: 50% LTV value 60k > | D56: =IF(D50<60001,D55,D54) -> 0 | L56: Austin Asbury | Loan Analyst | Ext 1262
L57: P 208.216.6949 (Call or Text) | E AAsbury@cogocapital.com
L58: 701 E. Front Ave., Second Floor | Coeur D’Alene, ID 83814 | cogocapital.com
A59: Max Refi Non Student LA | D59: =IF('Rate Sheet'!F26="No",D56,0) -> 0
A60: Student | L60: Austin Warr | Loan Analyst | Ext 1277
A61: 70% LTV Cap | D61: =IF('Rate Sheet'!F26="Yes",(D50*0.7),0) -> 0 | L61: P 208.601.6201 (Call or Text) | E awarr@securedinvestmentcorp.com
A62: No Cash Out | D62: =MIN(D61,'Loan Analysis Worksheet'!N23) -> 0 | L62: 701 E. Front Ave., Second Floor | Coeur d’Alene, ID 83814 | securedinvestmentcorp.com
A63: 50% LTV Cap | D63: =IF(D62>(50%*D50),(D50*50%),D62) -> 0
A64: Exception County or not | D64: =IF('Rate Sheet'!F38="Yes",D63,D62) -> 0 | L64: Bernadeth Barillos | Virtual Assistant | Ext 1305
A65: Minimum LA $30k | D65: =IF(D64<30000,0,D64) -> 0 | L65: P 208.991.9609 (Call or Text) | E bbarillos@cogocapital.com
A66: 50% LTV | D66: =IF(D65<(D50*0.5),D65,(D50*0.5)) -> 0 | L66: 701 E. Front Ave., Second Floor | Coeur D’Alene, ID 83814 | cogocapital.com
A67: 50% LTV value 60k > | D67: =IF(D50<60001,D66,D65) -> 0
A68: Max Refi Student Loan | D68: =IF('Rate Sheet'!F26="Yes",D67,0) -> 0 | L68: Sheena Mae Lagrosa | Virtual Assistant | Ext 1304
A69: Platinum Refi | L69: P 208.991.9074 (Call or Text) | E slagrosa@cogocapital.com
A70: Eval Loan | D70: =SUM(D50*0.7) -> 490000 | L70: 701 E. Front Ave., Second Floor | Coeur D’Alene, ID 83814 | cogocapital.com
A71: Eval No Cash-Out | D71: =MIN(D70,'Loan Analysis Worksheet'!N23) -> 490000
A72: Max Eval Loan | D72: =IF(D71>(D50*0.7),D70,D71) -> 490000
A73: Appraisal Loan | D73: =IF('Rate Sheet'!B52="Appraisal",('Formulas for Loan Amount'!D50*0.75),0) -> 525000
A74: Appraisal No Cash-Out | D74: =MIN(D73,'Loan Analysis Worksheet'!N23) -> 525000 | E74: =IF('Loan Analysis Worksheet'!F32<0,'Formulas for Loan Amount'!D70,'Loan Analysis Worksheet'!N23) -> 640000
A75: Max Appraisal Loan | D75: =IF(D74>(D50*0.7),D73,D74) -> 525000
A76: Appraisal or Eval | D76: =IF('Rate Sheet'!B52="Appraisal",'Formulas for Loan Amount'!D75,'Formulas for Loan Amount'!D72) -> 525000
A77: Minimum LA $30k | D77: =IF(D76<30000,0,D76) -> 525000 | E77: =IF('Loan Analysis Worksheet'!F32<0,'Formulas for Loan Amount'!D73,'Loan Analysis Worksheet'!N23) -> 640000
A78: Max Platinum LA | D78: =IF('Rate Sheet'!C27="Yes",D77,0) -> 0
A79: Max Refi Loan Amount | D79: =MAX(D78,D68,D59) -> 0
A82: Cash-Out Loans
A83: Max possible Loan Amount | D83: =SUM('Loan Analysis Worksheet'!F17*0.5) -> 0
A84: If there's Rehab $0 | D84: =IF('Loan Analysis Worksheet'!F15>0,0,D83) -> 0
A85: Proceeds | D85: =SUM(D83-'Loan Analysis Worksheet'!N23) -> -640000
A86: $75,000 Cap | D86: =IF(D85>75000,(D85-(D85-75000)),0) -> 0
A87: Non-Platinum Cash-out Loan | D87: =IF(D85>75000,(D86+'Loan Analysis Worksheet'!N23),D83) -> 0
A88: Platinum Cash-Out
A89: Loan Amount | D89: =SUM('Loan Analysis Worksheet'!F17*0.7) -> 0
A90: If there's Rehab $0 | D90: =IF('Loan Analysis Worksheet'!F15>0,0,'Formulas for Loan Amount'!D89) -> 0
A91: Min LA 30k | D91: =IF(D90<30000,0,D90) -> 0
A92: Proceeds | D92: =SUM(D89-'Loan Analysis Worksheet'!N23) -> -640000
A93: $100,000 Cap | D93: =IF(D92>100000,(D92-(D92-100000)),0) -> 0
A94: Platinum Cash-Out LA | D94: =IF(D92>100000,(D93+'Loan Analysis Worksheet'!N23),D91) -> 0
A95: Max Cash-Out Loan Amount | D95: =IF('Rate Sheet'!C27="Yes",'Formulas for Loan Amount'!D94,'Formulas for Loan Amount'!D87) -> 0

Sheet Rate Sheet
B2: Interest Rate | C2: Origination Point | D2: % Purchase Price | E2: LTV | F2: ARV | G2: Rehab | H2: Refi | I2: Cash Out | K2: Consulting Fee | L2: Closing Fees
A3: Base Rates | B3: 0.0899 | C3: 1 | D3: 1 | E3: 65-70% | F3: 0.7 | G3: 1 | H3: 0.65 | I3: 50-70% | K3: 697
A4: Credit Score:
A5: 720+ | B5: 0 | C5: 0 | D5: 0.9 | E5: 0.65 | F5: 0.65 | G5: 1 | H5: 0.65 | I5: 0.5
A6: 680-719 | B6: 0.01 | C6: 0.5 | D6: 0.9 | E6: 0.65 | F6: 0.65 | G6: 1 | H6: 0.65 | I6: 0.5
A7: 620-679 | B7: 0.02 | C7: 1 | D7: 0.9 | E7: 0.65 | F7: 0.65 | G7: 1 | H7: 0.65 | I7: 0.5
A8: 0-619 | B8: 0.03 | C8: 1.5 | D8: 0.9 | E8: 0.65 | F8: 0.65 | G8: 1 | H8: 0.65 | I8: 0.5
A9: Experience: | J9: COGO Loans Only
A10: 0 | B10: 0.03 | C10: 1.5 | D10: 0.9 | E10: 0.65 | F10: 0.65 | G10: 1 | H10: 0.65 | I10: 0.5 | K10: 997
A11: 1-2 | B11: 0.02 | C11: 1 | D11: 0.9 | E11: 0.65 | F11: 0.65 | G11: 1 | H11: 0.65 | I11: 0.5 | K11: 897
A12: 3-4 | B12: 0.01 | C12: 0.5 | D12: 0.9 | E12: 0.65 | F12: 0.65 | G12: 1 | H12: 0.65 | I12: 0.5 | K12: 797
A13: 5+ | B13: 0 | C13: 0 | D13: 0.9 | E13: 0.7 | F13: 0.7 | G13: 1 | H13: 0.65 | I13: 0.5 | K13: 697
A14: Premium Student: | B14: -0.01 | C14: -1 | D14: 1 | E14: 0.7 | F14: 0.7 | G14: 1 | H14: 0.65 | I14: 0.5
A16: No Appraisal: | B16: 0.01 | C16: 1 | D16: 0.9 | E16: 50-70% | F16: 65%-70% | G16: 1 | H16: 0.65 | I16: NA
A18: Must do 1 loan per year with COGO to keep discounted fee status
B19: Interest Rate | C19: Points | D19: Interest Rate | E19: Points | G19: =A5 -> 720+ | I19: =A6 -> 680-719 | K19: =A7 -> 620-679 | M19: =A8 -> 0-619
A20: Added the 1 and 1 | B20: =SUM(B21+1%) -> 0.1099 | C20: =SUM(C21+1) -> 2.5 | D20: =MAX(G20,I20,K20,M20) -> 0.01 | E20: =MAX(H20,J20,L20,N20) -> 0.5 | G20: =IF('Loan Analysis Worksheet'!F19>720,'Rate Sheet'!B5,0) -> 0 | H20: =IF('Loan Analysis Worksheet'!F19>720,'Rate Sheet'!C5,0) -> 0 | I20: =IF(AND('Loan Analysis Worksheet'!F19>679,'Loan Analysis Worksheet'!F19<720),'Rate Sheet'!B6,0) -> 0.01 | J20: =IF(AND('Loan Analysis Worksheet'!F19>679,'Loan Analysis Worksheet'!F19<720),'Rate Sheet'!C6,0) -> 0.5 | K20: =IF(AND('Loan Analysis Worksheet'!F19>619,'Loan Analysis Worksheet'!F19<680),'Rate Sheet'!B7,0) -> 0 | L20: =IF(AND('Loan Analysis Worksheet'!F19>619,'Loan Analysis Worksheet'!F19<680),'Rate Sheet'!C7,0) -> 0 | M20: =IF(AND('Loan Analysis Worksheet'!F19>-1,'Loan Analysis Worksheet'!F19<620),'Rate Sheet'!B8,0) -> 0 | N20: =IF(AND('Loan Analysis Worksheet'!F19>-1,'Loan Analysis Worksheet'!F19<620),'Rate Sheet'!C8,0) -> 0
B21: =SUM(B3+D20+C22+C24) -> 0.0999 | C21: =SUM(C3+E20+D22+D24) -> 1.5 | G21: =A10 -> 0 | I21: =A11 -> 1-2 | K21: =A12 -> 3-4 | M21: 5+
A22: Experience | C22: =MAX(G22,I22,K22,M22) -> 0 | D22: =MAX(H22,J22,L22,N22) -> 0 | G22: =IF('Loan Analysis Worksheet'!F20=0,'Rate Sheet'!B10,0) -> 0 | H22: =IF('Loan Analysis Worksheet'!F20=0,'Rate Sheet'!C10,0) -> 0 | I22: =IF(AND('Loan Analysis Worksheet'!F20>0,'Loan Analysis Worksheet'!F20<3),'Rate Sheet'!B11,0) -> 0 | J22: =IF(AND('Loan Analysis Worksheet'!F20>0,'Loan Analysis Worksheet'!F20<3),'Rate Sheet'!C11,0) -> 0 | K22: =IF(AND('Loan Analysis Worksheet'!F20>2,'Loan Analysis Worksheet'!F20<5),'Rate Sheet'!B12,0) -> 0 | L22: =IF(AND('Loan Analysis Worksheet'!F20>2,'Loan Analysis Worksheet'!F20<5),'Rate Sheet'!C12,0) -> 0 | M22: =IF(AND('Loan Analysis Worksheet'!F20=5,'Loan Analysis Worksheet'!F20<5),'Rate Sheet'!B13,0) -> 0 | N22: =IF(AND('Loan Analysis Worksheet'!F20=5,'Loan Analysis Worksheet'!F20<5),'Rate Sheet'!C13,0) -> 0
L24: =IF(B26="Yes",-1,0) -> 0
A25: Reno Report? | B25: Yes | L25: =IF(B28="Yes",1,0) -> 0
A26: Platinum Club | E26: Premium Student | F26: No
A27: Have they completed at least 4+ properties with COGO Capital in the 24 months? | B27: No | C27: =IF(B44="Yes",C49,"No") -> No
E28: For Local deals treat as a platinum going with a full appraisal.
E31: If local select "Yes" to quote the proper rates. | G31: No
A32: Have they completed at least 8+ properties Outside of COGO Capital in the 24 months? | B32: No
E35: Term In Months | F35: 12 | H35: Exception Counties (50% LTV Cap)
H36: Wayne, MI
H37: Cook, IL
A38: Are they able to supply HUD statements to prove they have completed those properties? | B38: No | E38: Exception County | F38: No | H38: Baltimore, MD
H39: Cuyahoga, OH
E41: For Refi's only
E42: If the borrower has invested more than this amount then select "Yes", otherwise "No" | G42: No
A44: Do they qualify? | B44: =IF(AND(B38="Yes")*(C44="Yes"),"Yes","No") -> No | C44: =IF(B32="Yes",B32,B27) -> No
A45: There will be a lot of documentation that we will require from them for the first loan and if they do not qualify then the $997 is non-refundable. | G45: =SUM('Loan Analysis Worksheet'!F26*0.1) -> 19200
E47: For Master Brokers Only
E48: Has the broker attended a Master Broker Class | G48: No
A49: Are the wanting to move forward with the qualifying process for the Platinum Club? | C49: No
E50: Are they wanting to split points? | G50: No
A52: Appraisal or Eval | B52: Appraisal
A53: Appraisals take around 2 to 3 weeks and Evals take around 4 to 6 business days

Sheet Drop Down List (hidden)
B2: Credit % | D2: Credit Points | F2: Experience % | H2: Experience Points | J2: Premium % | L2: Premium Points | N2: Term In Months | P2: No Appraisal | R2: Exception County | T2: Contigency 10%
B3: 0 | D3: 0 | F3: 0.03 | H3: 1.5 | J3: 0 | L3: 0 | N3: 6 | P3: No | R3: No | T3: No
B4: 0.01 | D4: 0.5 | F4: 0.02 | H4: 1 | J4: -0.01 | L4: -1 | N4: 12 | P4: Yes | R4: Yes | T4: Yes
B5: 0.02 | D5: 1 | F5: 0.01 | H5: 0.5 | N5: 18
B6: 0.03 | D6: 1.5 | F6: 0 | H6: 0 | N6: 24

Sheet Initial Estimate
B2: INITIAL ESTIMATE
C5: ='Loan Analysis Worksheet'!C4 -> Primary Guarantor: | D5: ='Loan Analysis Worksheet'!D4 -> Summer Reed | F5: ='Loan Analysis Worksheet'!F4 -> Primary's Credit Score: | G5: ='Loan Analysis Worksheet'!G4 -> 720
C6: ='Loan Analysis Worksheet'!C5 -> Second Guarantor: | D6: =IF('Loan Analysis Worksheet'!D5="","",'Loan Analysis Worksheet'!D5) ->  | F6: ='Loan Analysis Worksheet'!F5 -> Second's Credit Score: | G6: =IF('Loan Analysis Worksheet'!G5="","",'Loan Analysis Worksheet'!G5) -> 640
C7: ='Loan Analysis Worksheet'!C6 -> Broker Name: | D7: =IF('Loan Analysis Worksheet'!D6="","",'Loan Analysis Worksheet'!D6) -> 
C8: ='Loan Analysis Worksheet'!C7 -> Property Address: | D8: =IF('Loan Analysis Worksheet'!D7="","",'Loan Analysis Worksheet'!D7) -> 
E10: Loan Type: | F10: ='Loan Analysis Worksheet'!F10 -> Purchase & Rehab
E11: Units: | F11: ='Loan Analysis Worksheet'!F11 -> 1
E12: Purchase Price: | F12: 522000
E13: Amount Owed: | F13: ='Loan Analysis Worksheet'!F14 -> 0
E14: Rehab Bid: | F14: =SUM('Loan Analysis Worksheet'!F15:F16) -> 60000
E15: This is a reimbursement draw process.
E16: As Is Value: | F16: ='Loan Analysis Worksheet'!F17 -> 0
E17: After Repair Value (ARV): | F17: ='Loan Analysis Worksheet'!F18 -> 700000
E18: Credit Score: | F18: ='Loan Analysis Worksheet'!F19 -> 680
E19: Experience: | F19: ='Loan Analysis Worksheet'!F20 -> 16
E20: ='Loan Analysis Worksheet'!E21 -> Seller Second/Earnest Deposit: | F20: ='Loan Analysis Worksheet'!F21 -> 448000
E21: Broker Fee: | F21: ='Loan Analysis Worksheet'!F23 -> 0.03
C24: Summary Estimate
E26: Loan Amount: | F26: ='Loan Analysis Worksheet'!F26 -> 192000
E27: Loan To Value (LTV): | F27: ='Loan Analysis Worksheet'!F27 -> 0.2742857143
E28: Interest Rate: | F28: ='Loan Analysis Worksheet'!F28 -> 0.1099
E29: Origination Points: | F29: ='Loan Analysis Worksheet'!F29 -> 0.025
E30: Term In Months: | F30: ='Loan Analysis Worksheet'!F30 -> 12
E31: Monthly Payment: | F31: ='Loan Analysis Worksheet'!F31 -> 1758.4
E32: ='Loan Analysis Worksheet'!E32:E32 -> Required Down Payment of Purchase Price or Amount Owed: | F32: ='Loan Analysis Worksheet'!F32 -> 0
E33: ='Loan Analysis Worksheet'!E33 -> Origination Fee Cost: | F33: ='Loan Analysis Worksheet'!F33 -> 4800
E34: Broker Fee: | F34: ='Loan Analysis Worksheet'!F34 -> 5760
E35: Closing Cost: | F35: ='Loan Analysis Worksheet'!F35 -> To be Determined
D38: These numbers are not final and are subject to change due to unknown 3rd party cost or fees and final underwriting approval
E40: =TODAY() -> 2022-12-16
C50: Austin Asbury | E50: Loan Analyst | F50: Ext 1380
C51: P 208.216.6949 (Call or Text) | E51: E AAsbury@cogocapital.com
C52: 701 E. Front Ave., Second Floor | Coeur D’Alene, ID 83814 | cogocapital.com

Sheet LA 30 Year
B1: LOAN ANALYSIS WORKSHEET LONG TERM RENTAL | O1: Constructive Rate Adjustments by LTV
O2: LTV | P2: =IF(C31<50,"<=50",) -> <=50 | Q2: =IF(AND(C31>50.01%,C31<55.001%),"50.01-55","") ->  | R2: =IF(AND(C31>55.01%,C31<60.001%),"55.01-60","") ->  | S2: =IF(AND(C31>60.01%,C31<65.001%),"60.01-65","") ->  | T2: =IF(AND(C31>65.01%,C31<70.001%),"65.01-70","") ->  | U2: =IF(AND(C31>70.01%,C31<75.001%),"70.01-75","") -> 70.01-75 | V2: =IF(AND(C31>75.01%,C31<80.001%),"75.01-80","") ->  | W2: Add-On
A3: Primary Guarantor: | B3: Summer Reed | D3: Primary's Credit Score: | G3: 720 | O3: =IF(C23>759.9,"760+",0) -> 0 | P3: =IF(AND(C31<50.001%,C23>759.9),-0.25%,0) -> 0 | Q3: =IF(AND(Q2="50.01-55",O3="760+"),-0.25%,0) -> 0 | R3: =IF(AND(R2="55.01-60",O3="760+"),-0.25%,0) -> 0 | S3: =IF(AND(S2="60.01-65",O3="760+"),-0.125%,0) -> 0 | T3: =IF(AND(T2="65.01-70",O3="760+"),0%,0) -> 0 | U3: =IF(AND(U2="70.01-75",O3="760+"),0.125%,0) -> 0 | V3: =IF(AND(V2="75.01-80",O3="760+"),0%,0) -> 0 | W3: =SUM(P3:V3) -> 0
A4: Second Guarantor: | B4: Summer Reed | D4: Second's Credit Score: | I4: Does the client have 18 months of Short Term Rental history(If property is being used for short term rental) | M4: No | O4: =IF(AND(C23>739.9,C23<759.1),"740-759",0) -> 0 | P4: =IF(AND(C31<50.001%,O4="740-759"),-0.125%,0) -> 0 | Q4: =IF(AND(Q2="50.01-55",O4="740-759"),-0.125%,0) -> 0 | R4: =IF(AND(R2="55.01-60",O4="740-759"),-0.125%,0) -> 0 | S4: =IF(AND(S2="60.01-65",O4="740-759"),0%,0) -> 0 | T4: =IF(AND(T2="65.01-70",O4="740-759"),0%,0) -> 0 | U4: =IF(AND(U2="70.01-75",O4="740-759"),0.25%,0) -> 0 | V4: =IF(AND(V2="75.01-80",O4="740-759"),0%,0) -> 0 | W4: =SUM(P4:V4) -> 0
A5: Broker Name: | O5: =IF(AND(C23>719.9,C23<739.1),"720-739",0) -> 720-739 | P5: =IF(AND(C31<50.001%,O5="720-739"),0%,0) -> 0 | Q5: =IF(AND(Q2="50.01-55",O5="720-739"),0%,0) -> 0 | R5: =IF(AND(R2="55.01-60",O5="720-739"),0%,0) -> 0 | S5: =IF(AND(S2="60.01-65",O5="720-739"),0%,0) -> 0 | T5: =IF(AND(T2="65.01-70",O5="720-739"),0.125%,0) -> 0 | U5: =IF(AND(U2="70.01-75",O5="720-739"),0.375%,0) -> 0.00375 | V5: =IF(AND(V2="75.01-80",O5="720-739"),0%,0) -> 0 | W5: 0.00375
A6: Property Address: | O6: =IF(AND(C23>699.9,C23<719.1),"700-719",0) -> 0 | P6: =IF(AND(C31<50.001%,O6="700-719"),0.125%,0) -> 0 | Q6: =IF(AND(Q2="50.01-55",O6="700-719"),0.125%,0) -> 0 | R6: =IF(AND(R2="55.01-60",O6="700-719"),0.25%,0) -> 0 | S6: =IF(AND(S2="60.01-65",O6="700-719"),0.25%,0) -> 0 | T6: =IF(AND(T2="65.01-70",O6="700-719"),0.25%,0) -> 0 | U6: =IF(AND(U2="70.01-75",O6="700-719"),0.5%,0) -> 0 | V6: N/A | W6: 0
O7: =IF(AND(C23>679.9,C23<699.1),"680-699",0) -> 0 | P7: =IF(AND(C31<50.001%,O7="680-699"),0.125%,0) -> 0 | Q7: =IF(AND(Q2="50.01-55",O7="680-699"),0.125%,0) -> 0 | R7: =IF(AND(R2="55.01-60",O7="680-699"),0.25%,0) -> 0 | S7: =IF(AND(S2="60.01-65",O7="680-699"),0.25%,0) -> 0 | T7: =IF(AND(T2="65.01-70",O7="680-699"),0.5%,0) -> 0 | U7: =IF(AND(U2="70.01-75",O7="680-699"),0.75%,0) -> 0 | V7: N/A | W7: 0
A8: If the property is in one of the following states it has to be a ARM (AL, GA, KS, ME, MO, MS, NE, SD, WI, WY) | O8: =IF(AND(C23>659.9,C23<679.1),"660-679",0) -> 0 | P8: =IF(AND(C31<50.001%,O8="660-679"),1%,0) -> 0 | Q8: =IF(AND(Q2="50.01-55",O8="660-679"),1%,0) -> 0 | R8: =IF(AND(R2="55.01-60",O8="660-679"),1%,0) -> 0 | S8: =IF(AND(S2="60.01-65",O8="660-679"),1%,0) -> 0 | T8: =IF(AND(T2="65.01-70",O8="660-679"),1%,0) -> 0 | U8: N/A | V8: N/A | W8: 0
A9: For 30 year loans we can no longer lend in AK and HI | O9: =IF(AND(C23>639.9,C23<659.1),"640-659",0) -> 0 | P9: =IF(AND(C31<50.001%,O9="640-659"),0,0) -> 0 | Q9: =IF(AND(Q2="50.01-55",O9="640-659"),0%,0) -> 0 | R9: =IF(AND(R2="55.01-60",O9="640-659"),0%,0) -> 0 | S9: =IF(AND(S2="60.01-65",O9="640-659"),0%,0) -> 0 | T9: N/A | U9: N/A | V9: N/A | W9: 0
O10: 0-639 | P10: N/A | Q10: N/A | R10: N/A | S10: N/A | T10: N/A | U10: N/A | V10: N/A | W10: 0
B11: Loan Type | C11: Purchase
B12: Units | C12: 1 | O12: By Property type
B13: Properties | C13: 1 | J13: (If Refi) Is the property currently rented: | K13: No | O13: =IF(C12>1,"2-4 Units","") ->  | P13: =IF(AND(P2="65.01-70",O13="2-4 Units"),0.125%,0) -> 0 | Q13: =IF(AND(Q2="65.01-70",O13="2-4 Units"),0.125%,0) -> 0 | R13: =IF(AND(R2="65.01-70",O13="2-4 Units"),0.125%,0) -> 0 | S13: =IF(AND(S2="65.01-70",O13="2-4 Units"),0.125%,0) -> 0 | T13: =IF(AND(T2="65.01-70",O13="2-4 Units"),0.25%,0) -> 0 | U13: =IF(AND(U2="70.01-75",O13="2-4 Units"),0.25%,0) -> 0 | V13: =IF(AND(V2="75.01-80",O13="2-4 Units"),0%,0) -> 0 | W13: =SUM(P13:V13) -> 0
B14: Purchase Price | C14: 100000 | J14: Will this or is this a Short Term Rental (like Airbnb): | K14: No | O14: Warrantable Condo | P14: =IF(AND(P2="70.01-75",K15="Yes"),0.125%,0) -> 0 | Q14: =IF(AND(Q2="70.01-75",K15="Yes"),0.125%,0) -> 0 | R14: =IF(AND(R2="70.01-75",K15="Yes"),0.125%,0) -> 0 | S14: =IF(AND(S2="70.01-75",K15="Yes"),0.125%,0) -> 0 | T14: =IF(AND(T2="70.01-75",K15="Yes"),0.125%,0) -> 0 | U14: =IF(AND(U2="70.01-75",K15="Yes"),0.375%,0) -> 0 | V14: N/A | W14: =SUM(P14:U14) -> 0
B15: Amount Owed | J15: Warrantable Condo: | K15: No | O15: Non-Warrantable Condo | W15: =IF(K16="Yes",0.875%,0) -> 0
B16: AS-IS Value | C16: 100000 | F16: =IF(C11="Purchase",G16,C16) -> 100000 | G16: =IF(C14>C16,C16,C14) -> 100000 | J16: Non-Warrantable Condo: | K16: No
B17: Qualifying Value | C17: =IF(F16<100000,0,F16) -> 100000 | J17: Are one of the borrowers a Foreign National with no established US credit: | K17: No | O17: DSCR
B18: Yearly Property Tax | C18: 3000 | O18: =IF(AND(M32>0,M32<1.0999),"DSCR > 1.00x < 1.09x","") ->  | P18: =IF(AND(O18="DSCR > 1.00x < 1.10x",C31<50%),0.75%,0) -> 0 | Q18: =IF(AND(O18="DSCR > 1.00x < 1.10x",Q2="50.01-55"),0.75%,0) -> 0 | R18: =IF(AND(O18="DSCR > 1.00x < 1.10x",R2="55.01-60"),0.75%,0) -> 0 | S18: =IF(AND(O18="DSCR > 1.00x < 1.10x",S2="60.01-65"),0.75%,0) -> 0 | T18: =IF(AND(O18="DSCR > 1.00x < 1.10x",T2="65.01-70"),0.75%,0) -> 0 | U18: =IF(AND(O18="DSCR > 1.00x < 1.10x",U2="70.01-75"),0.75%,0) -> 0 | V18: =IF(AND(O18="DSCR > 1.00x < 1.10x",V2="75.01-80"),0.75%,0) -> 0 | W18: =SUM(P18:V18) -> 0
B19: Yearly Property Insurance | C19: 1200 | O19: =IF(AND(M32>1.1,M32<1.2),"DSCR > 1.10x < 1.2x","") -> DSCR > 1.10x < 1.2x | P19: =IF(AND(O19="DSCR > 1.10x < 1.2x",C31<50%),0.5%,0) -> 0 | Q19: =IF(AND(O19="DSCR > 1.10x < 1.2x",Q2="50.01-55"),0.5%,0) -> 0 | R19: =IF(AND(O19="DSCR > 1.10x < 1.2x",R2="55.01-60"),0.5%,0) -> 0 | S19: =IF(AND(O19="DSCR > 1.10x < 1.2x",S2="60.01-65"),0.5%,0) -> 0 | T19: =IF(AND(O19="DSCR > 1.10x < 1.2x",T2="65.01-70"),0.5%,0) -> 0 | U19: =IF(AND(O19="DSCR > 1.10x < 1.2x",U2="70.01-75"),0.5%,0) -> 0.005 | V19: =IF(AND(O19="DSCR > 1.10x < 1.2x",V2="75.01-80"),0.5%,0) -> 0 | W19: =SUM(P19:V19) -> 0.005
B20: Yearly HOA Dues | O20: DSCR >1.20x | P20: 0
B21: Monthly Rent Income | C21: 1050 | G21: Is the Property in one of the following states? (AL, GA, KS, ME, MO, MS, NE, SD, WI, WY) | K21: No
B22: Broker Fee: | L22: Fixed
B23: Credit Score: | C23: =MIN(G3:G4) -> 720 | L23: Base Rate | M23: 0.07375 | O23: Guarantor
B24: Loan Product: | C24: 5/1 ARM | L24: Total LTV Add-On | M24: =SUM(W3:W10) -> 0.00375 | O24: =IF(K17="Yes","Foreign National","") ->  | P24: =IF(AND(O24="Foreign National",C31<50.01%),1.25%,0) -> 0 | Q24: =IF(AND(O24="Foreign National",Q2="50.01-55"),1.25%,0) -> 0 | R24: =IF(AND(O24="Foreign National",R2="55.01-60"),1.25%,0) -> 0 | S24: =IF(AND(O24="Foreign National",S2="60.01-65"),1.25%,0) -> 0 | T24: N/A | U24: N/A | V24: N/A | W24: =SUM(P24:S24) -> 0
G25: Loan Amount Override | L25: Other Add-Ons | M25: =SUM(W13:W32) -> 0.0075 | O25: Loan Type
B26: Pre-Payment Penalty | C26: 5 Year Step Down 5%, 4%, 3%, 2%, 1% | L26: 30 Year Fixed Rate | M26: =IF(C24="Fixed",L27,"") ->  | O26: Cash-Out | P26: =IF(AND(C11="Cash-Out Refi",C31<50.001%),0.25%,0) -> 0 | Q26: =IF(AND(C11="Cash-Out Refi",Q2="50.01-55"),0.25%,0) -> 0 | R26: =IF(AND(C11="Cash-Out Refi",R2="55.01-60"),0.25%,0) -> 0 | S26: =IF(AND(C11="Cash-Out Refi",S2="60.01-65"),0.25%,0) -> 0 | T26: =IF(AND(C11="Cash-Out Refi",T2="65.01-70"),0.25%,0) -> 0 | U26: =IF(AND(C11="Cash-Out Refi",U2="70.01-75"),0.75%,0) -> 0 | V26: N/A | W26: =SUM(P26:V26) -> 0
L27: =IF(M27<7.5%,7.5%,M27) -> 0.085 | M27: =SUM(M23:M25) -> 0.085 | O27: Portfolio/Cross-Collateralization | W27: =IF(C13>1,0.75%,0) -> 0
B28: Summary Estimate | L28: Loan Amount should be: | M28: =IF(AND(K13="No",C11<>"Purchase"),0,R67) -> 75000 | O28: Loan Amount
O29: Less than $100k | P29: 0 | Q29: 0 | R29: 0 | S29: 0 | T29: =IF(AND(C30<100000,T2="65.01-70"),0.125%,0) -> 0 | U29: =IF(AND(C30<100000,U2="70.01-75"),0.25%,0) -> 0.0025 | V29: =IF(AND(C30<100000,V2="75.01-80"),0.25%,0) -> 0 | W29: =SUM(P29:V29) -> 0.0025
B30: Loan Amount: | C30: 75000 | O30: Short Term Rental | W30: =IF(K14="Yes",0,0) -> 0 | X30: =SUM(P31:V31) -> 0
B31: Loan to Value (LTV): | C31: =C30/C16 -> 0.75 | L31: Origination | M31: 0.03 | O31: State Add-On | W31: =IF(K21="Yes",0.125%,0) -> 0
B32: Qualifying Interest Rate: | C32: 0.08375 | L32: DSCR | M32: =SUM(C21/((C18/12)+(C19/12)+(C20/12)+C35)) -> 1.14123714
B33: Origination Points: | C33: =M31 -> 0.03 | O33: Constructive Loan Amount
B34: Qualifying Broker Fee: | C34: =IF(C22>1.25%,1.25%,C22) -> 0 | J34: Total Cost | K34: =SUM(C14+C15+C19+C18+C20) -> 104200 | L34: Interest Rate Should Be: | M34: =IF(C24="Fixed",M26,M45) -> 0.08625 | P34: Purchase or Refi | Q34: Cash-Out Refi | R34: Short Term Rental | S34: Max Loan | V34: Constructive LTV
B35: Monthly Principal and Interest Payment: | C35: =PMT(C32/12,360,-C30,0) -> 570.0541794 | J35: Total Credits | K35: =C30 -> 75000 | O35: =IF(C23>759.9,"760+",0) -> 0 | P35: =IF(O35="760+",W37,0) -> 0 | Q35: =IF(AND(O35="760+",C11="Cash-Out Refi"),W37,P35) -> 0 | R35: =IF(AND(O35="760+",B14="Yes"),0,0) -> 0 | S35: =MIN(P35:Q35) -> 0 | V35: 0.65 | W35: =SUM(C17*0.65) -> 65000
B36: Monthly Principal, Interest, Taxes, and Insurance Payment: | C36: =(C35+((C18+C19+C20)/12)) -> 920.0541794 | F36: =SUM(K34-K35) -> 29200 | O36: =IF(AND(C23>739.9,C23<759.1),"740-759",0) -> 0 | P36: =IF(O36="740-759",W37,0) -> 0 | Q36: =IF(AND(O36="740-759",C11="Cash-Out Refi"),W37,P36) -> 0 | R36: =IF(AND(O36="740-759",B14="Yes"),0,0) -> 0 | S36: =MIN(P36:Q36) -> 0 | V36: 0.7 | W36: =SUM(C17*0.7) -> 70000
B37: =IF(F36<0,"Cash-Out:","Required Down payment:") -> Required Down payment: | C37: =IF(F36<0,(F36*-1),F36) -> 29200 | L37: ARM | O37: =IF(AND(C23>719.9,C23<739.1),"720-739",0) -> 720-739 | P37: =IF(O37="720-739",W37,0) -> 75000 | Q37: =IF(AND(O37="720-739",C11="Cash-Out Refi"),W37,P37) -> 75000 | R37: =IF(AND(O37="720-739",B14="Yes"),0,0) -> 0 | S37: =MIN(P37:Q37) -> 75000 | V37: 0.75 | W37: =SUM(C17*0.75) -> 75000
B38: Origination Fee: | C38: =SUM(M31*C30) -> 2250 | O38: =IF(AND(C23>699.9,C23<719.1),"700-719",0) -> 0 | R38: =IF(AND(O38="700-719",B14="Yes"),0,0) -> 0 | S38: =IF(O38="700-719",W37,0) -> 0 | V38: 0.8 | W38: =SUM(C17*0.8) -> 80000
B39: Broker Fee: | C39: =SUM(C34*C30) -> 0 | L39: Initial Adjustment Cap 2%/ Future adjustment Cap 2%/ Max Cap for the lifetime of the loan 5% | O39: =IF(AND(C23>679.9,C23<699.1),"680-699",0) -> 0 | R39: =IF(AND(O39="680-699",B14="Yes"),0,0) -> 0 | S39: =IF(O39="680-699",W36,0) -> 0
B40: Closing Cost: | C40: To be Determined | O40: =IF(AND(C23>659.9,C23<679.1),"660-679",0) -> 0 | S40: =IF(O40="660-679",W36,0) -> 0
O41: =IF(AND(C23>639.9,C23<659.1),"640-659",0) -> 0 | S41: =IF(O41="640-659",0,0) -> 0
B42: Total Funds Needed to See | C42: =IF(F36<0,(C35*4),((C35*4)+C37+C38+C39)) -> 33730.21672 | L42: Base Rate 5/1 | M42: =IF(C24="5/1 ARM",7.5%,7.375%) -> 0.075 | O42: =IF(C23<639.9,"639 and below",0) -> 0 | S42: 0
L43: Total LTV Add-On | M43: =SUM(W3:W10) -> 0.00375 | Q43: Max Constructive | R43: =MAX(S35:S42) -> 75000
B44: This includes your down payment and 4 months of payment reserves | L44: Other Add-Ons | M44: =SUM(W13:W32) -> 0.0075 | Q44: Minimum Auto Loan $55,000 | R44: =IF(R43<54999.999,0,R43) -> 75000
L45: 30 Year ARM Rate | M45: =IF(C24="Fixed","",L48) -> 0.08625 | Q45: Loan Override or Not | R45: =IF(G26>0,G26,R44) -> 75000
Q46: Minimum Loan $55,000 | R46: =IF(R45<54999.999,55000,R45) -> 75000
L47: ARM Rate | Q47: Max Constructive Loan | R47: =IF(R46>R44,R44,R46) -> 75000
L48: =IF(M48<7.5%,7.5%,M48) -> 0.08625 | M48: =SUM(M42:M44) -> 0.08625 | Q48: Short Term Rental Pur. Or Rate and Term 75% Cap / Cash out cap at 70% | R48: =IF(AND(K14="Yes",C11="Cash-Out Refi"),W36,W37) -> 75000
R49: =IF(R47<R48,R47,R48) -> 75000
F50: Lending Cheat sheet | R50: =IF(R49<50000,0,R49) -> 75000
A51: Lender | D51: Constructive | H51: Occupancy Requirements for Refis for SFR | K51: Must be occupied | Q51: Short Term 700 CS Cap | R51: =IF(AND(K14="Yes",C23>699.9),R50,0) -> 0
H52: Occupancy Requirements for Refis for 2-4 Unit | K52: Only one unit can be vacant and is subject to a 5% LTV reduction | Q52: Short Term Rental or Not | R52: =IF(K14="Yes",R51,R47) -> 75000
A53: Credit score | D53: Mid-Score | Q53: Short Term $100,000 Min Val | R53: =IF(AND(K14="Yes",C16<100000),0,R52) -> 75000
A54: Minimum CS for Main borrower | D54: 680 | H54: Occupancy Requirements for Purchases for SFR | K54: Must be occupied | Q54: If loan exceeds $1.5M LTV cap 65% | R54: =IF(AND(R53>1500000,R53>W35),W35,R53) -> 75000
A55: Minimum CS for Co-borrower | D55: 680 | H55: Occupancy Requirements for Refis for 2-3 Unit | K55: Only one unit can be vacant | Q55: $2m Loan Cap | R55: =IF(R54>2000000,2000000,R54) -> 75000
A56: Population Density Requirements | D56: N/A | H56: Occupancy Requirements for Refis for 4 Unit | K56: Only 2 units can be vacant | Q56: Warrantable Condo | R56: =IF(AND(K15="Yes",R55>W37),W37,R55) -> 75000
Q57: Non-Warrantable Condo | R57: =IF(AND(K16="Yes",R56>W35),W35,R56) -> 75000
A58: Minimum Loan for Single Prop | D58: 55000 | H58: Lease Agreement Requirements | K58: Cannot be leased to a member from the entity or a family member | Q58: Short-Term DSCR Cap 1.2 | R58: =IF(AND(K14="Yes",M32<1.2%),0,R57) -> 75000
A59: Maximum Loan for Single Prop | D59: 2000000 | Q59: Short Term Rental Experience | R59: =IF(AND(K14="Yes",M4="No"),0,R58) -> 75000
A60: Minimum Appraised Value | D60: 100000 | R60: =IF(M32<1,0,R59) -> 75000
H61: Credit/Background Requirements | K61: No 30+ days late on their mortgage in the last 24 months | Q61: Foreign Investor | R61: =IF(AND(K17="Yes",R60>W35),W35,R60) -> 75000
A62: Properties allowed per loan | D62: 1 | Q62: Minimum DSCR 70 ≤ 75 LTV (Cashout Refi): 1.10x** | R62: =IF(AND(C11="Cash-Out Refi",S62="70%-75%"),T62,R61) -> 75000 | S62: =IF(AND(C31>69.99%,C31<75.1),"70%-75%",0) -> 70%-75% | T62: =IF(AND(C11="Cash-Out Refi",M32<1.1),0,R61) -> 75000
K63: No Bankruptcies in the last 3 years | R63: =IF(AND(K21="Yes",R62>W36),W36,R62) -> 75000
A64: Required Liquidity | D64: 9 Months | H64: Any Felony convictions with the last 10 years are allowed within reason and require a detailed Letter of Explanation | Q64: No Short Term Rental | R64: =IF(K14="Yes",0,R63) -> 75000
Q65: Minimum 1.20 DSCR for CS Less Than 720 | R65: =IF(AND(M32<1.2,C23<720),0,R64) -> 75000
A66: Seasoning Requirements for Refi's | D66: 6 Months | Q66: Minimum 1.10 DSCR for CS = or greater than 720 | R66: =IF(AND(M32<1.1,C23>719.999),0,R65) -> 75000
Q67: Minimum Loan $55,000 | R67: =IF(R66<54999.999,0,R66) -> 75000
A68: Max Acreage | D68: Up to 10 Acres
A70: Where do you order Appraisals | D70: FastApps
A71: When are you required to get a 2nd Appraisal | D71: Loan Amounts $1.5m and above
A73: Who orders 2nd appraisal | D73: COGO
A75: Minimum SQFT for Condo | D75: 500 SQFT

Sheet Initial 30 Year Estimate
B2: INITIAL 30 YEAR ESTIMATE
B5: ='LA 30 Year'!A3:A6 -> Primary Guarantor: | C5: ='LA 30 Year'!B3 -> Summer Reed | E5: ='LA 30 Year'!D3 -> Primary's Credit Score: | F5: ='LA 30 Year'!G3 -> 720
B6: Second Guarantor: | C6: =IF('LA 30 Year'!B4="","",'LA 30 Year'!B4) -> Summer Reed | E6: ='LA 30 Year'!D4 -> Second's Credit Score: | F6: ='LA 30 Year'!G4 -> 0
B7: Broker Name: | C7: =IF('LA 30 Year'!B5="","",'LA 30 Year'!B5) -> 
B8: Property Address: | C8: =IF('LA 30 Year'!B6="","",'LA 30 Year'!B6) -> 
E10: Loan Type: | F10: ='LA 30 Year'!C11 -> Purchase
E11: Units: | F11: ='LA 30 Year'!C12 -> 1
E12: Properties: | F12: ='LA 30 Year'!C13 -> 1
E13: Purchase Price: | F13: =SUM('LA 30 Year'!C14) -> 100000
E14: Amount Owed: | F14: ='LA 30 Year'!C15 -> 0
E15: Qualifying Value: | F15: ='LA 30 Year'!C17 -> 100000
E16: Estimated Yearly Taxes: | F16: ='LA 30 Year'!C18 -> 3000
E17: Estimated Yearly Insurance: | F17: ='LA 30 Year'!C19 -> 1200
E18: Estimated Yearly HOA Dues: | F18: ='LA 30 Year'!C20 -> 0
E19: Credit Score: | F19: ='LA 30 Year'!C23 -> 720
E20: ='LA 30 Year'!B21 -> Monthly Rent Income | F20: ='LA 30 Year'!C21 -> 1050
E21: Loan Term: | F21: ='LA 30 Year'!C24 -> 5/1 ARM
E22: Pre-Payment Penalty: | F22: ='LA 30 Year'!C26 -> 5 Year Step Down 5%, 4%, 3%, 2%, 1%
E23: =IF(OR('LA 30 Year'!C24="5/1 ARM",'LA 30 Year'!C24="10/1 ARM"),"ARM Terms:","") -> ARM Terms: | F23: =IF(OR('LA 30 Year'!C24="5/1 ARM",'LA 30 Year'!C24="10/1 ARM"),'LA 30 Year'!L39,"") -> Initial Adjustment Cap 2%/ Future adjustment Cap 2%/ Max Cap for the lifetime of the loan 5%
C25: Summary Estimate
E27: Loan Amount: | F27: ='LA 30 Year'!C30 -> 75000
E28: Loan To Value (LTV): | F28: ='LA 30 Year'!C31 -> 0.75
E29: Interest Rate: | F29: ='LA 30 Year'!C32 -> 0.08375
E30: Origination Points: | F30: ='LA 30 Year'!C33 -> 0.03
E31: Broker Points: | F31: ='LA 30 Year'!C34 -> 0
E32: ='LA 30 Year'!B35 -> Monthly Principal and Interest Payment: | F32: ='LA 30 Year'!C35 -> 570.0541794
E33: ='LA 30 Year'!B36 -> Monthly Principal, Interest, Taxes, and Insurance Payment: | F33: ='LA 30 Year'!C36 -> 920.0541794
E34: ='LA 30 Year'!B37 -> Required Down payment: | F34: ='LA 30 Year'!C37 -> 29200
E35: ='LA 30 Year'!B38 -> Origination Fee: | F35: ='LA 30 Year'!C38 -> 2250
E36: ='LA 30 Year'!B39 -> Broker Fee: | F36: ='LA 30 Year'!C39 -> 0
E37: ='LA 30 Year'!B40 -> Closing Cost: | F37: ='LA 30 Year'!C40 -> To be Determined
E39: ='LA 30 Year'!#REF! ->  | F39: ='LA 30 Year'!#REF! -> 
E42: ='LA 30 Year'!B42:C42 -> Total Funds Needed to See | F42: 33730.21672
C43: This includes your down payment and 4 months of payment reserves
C45: Interest rates and LTV's are subject to change until your loan is approved from Underwriting
D47: =TODAY() -> 2022-12-16
C48: Austin Asbury | E48: Loan Analyst | F48: Ext 1380
C49: P 208.216.6949 (Call or Text) | E49: E AAsbury@cogocapital.com
C50: 701 E. Front Ave., Second Floor | Coeur D’Alene, ID 83814 | cogocapital.com
